bitfinex-derivatives/quotes_SOLF0:USTF0_20250310
["timestamp","ask_amount","ask_price","bid_price","bid_amount"]
[1741618740123,4.3375,120.64,120.54,67.86927693]
[1741618740321,4.3375,120.64,120.54,4.1245]
[1741618740513,4.3375,120.64,120.55,62.0]
[1741618740722,0.05243893,120.6,120.58,0.05832968]
[1741618741227,8.2932,120.59,120.58,0.05832968]
[1741618742714,121.38477693,120.69,120.58,63.80310661]
[1741618742919,337.26477693,120.71,120.58,63.80310661]
[1741618742920,8.6688,120.68,120.58,63.80310661]
[1741618743116,8.2929,120.6,120.58,63.74477693]
[1741618743421,8.6688,120.68,120.58,63.74477693]
[1741618743922,8.6688,120.68,120.6,63.74477693]
[1741618744226,8.2904,120.63,120.62,0.06354181]
[1741618744928,8.6688,120.68,120.62,0.06354181]
[1741618745227,63.74477693,120.73,120.62,63.80831874]
[1741618745428,63.74477693,120.73,120.63,4.1478]
[1741618745620,63.74477693,120.73,120.63,12.5545]
[1741618745822,200.6073,120.74,120.67,0.05229161]
[1741618746022,8.6073,120.74,120.67,0.05229161]
[1741618746424,8.2848,120.72,120.67,0.05229161]
[1741618746625,8.2848,120.72,120.68,8.2866]
[1741618746826,4.304,120.75,120.66,63.74477693]
[1741618747021,68.04877693,120.75,120.69,0.06062182]
[1741618747222,4.304,120.75,120.69,0.06062182]
[1741618747631,8.5269,120.78,120.69,0.06062182]
[1741618748025,8.2847,120.72,120.66,63.74477693]
[1741618748226,8.5269,120.78,120.7,8.2853]
[1741618748426,8.5269,120.78,120.7,63.74477693]
[1741618748728,11.04122142,120.81,120.74,63.74477693]
[1741618748921,48.1328857,120.84,120.74,63.74477693]
[1741618749120,48.1328857,120.84,120.73,57.58]
[1741618749322,63.74477693,120.83,120.78,0.05535083]
[1741618750218,8.2803,120.79,120.78,0.05535083]
[1741618751526,3.968,120.84,120.78,0.05535083]
[1741618751723,57.54,120.89,120.78,63.80012776]
[1741618751929,76.24027693,120.9,120.8,63.74477693]
[1741618752330,63.74477693,120.88,120.84,1.464e-05]
[1741618752626,8.2762,120.85,120.84,1.464e-05]
[1741618752932,0.05325924,120.86,120.84,1.464e-05]
[1741618754032,11.04122142,120.91,120.84,66.22479157]
[1741618754229,11.04122142,120.91,120.87,63.74477693]
[1741618754526,11.04122142,120.91,120.9,8.2727]
[1741618754835,121.45343571,120.92,120.9,62.0]
[1741618754836,8.2718,120.92,120.9,62.0]
[1741618755028,107.90966263,120.98,120.87,63.74477693]
[1741618755229,57.5,120.96,120.9,0.06087181]
[1741618755532,8.2721,120.91,120.9,0.06087181]
[1741618755929,8.2721,120.91,120.9,7.181e-05]
[1741618756723,123.72477693,120.91,120.77,63.74477693]
[1741618756924,63.74477693,120.89,120.77,63.74477693]
[1741618757225,277.1436,120.92,120.83,63.74477693]
[1741618757226,61.4236,120.92,120.83,63.74477693]
[1741618757427,8.2741,120.88,120.83,63.74477693]
[1741618757635,3.9636,120.92,120.84,4.2096]
[1741618757933,0.05818017,120.87,120.84,0.06094818]
[1741618758132,0.05818017,120.87,120.79,125.74477693]
[1741618758327,0.05818017,120.87,120.84,0.05707074]
[1741618758539,63.74477693,120.85,120.75,63.74477693]
[1741618758830,63.74477693,120.85,120.74,69.9078]
[1741618759035,8.281,120.78,120.74,12.4478]
[1741618759239,63.74477693,120.83,120.74,12.4478]
[1741618759537,8.2824,120.76,120.74,12.4478]
[1741618759728,63.74477693,120.83,120.77,0.05894082]
[1741618759729,0.0542438,120.8,120.77,0.05894082]
[1741618759929,63.74477693,120.85,120.74,4.2096]
[1741618760130,63.74477693,120.85,120.75,63.74477693]
[1741618760332,0.05649486,120.8,120.77,0.05800088]
[1741618760638,0.05649486,120.8,120.74,4.2096]
[1741618760833,0.05649486,120.8,120.77,0.05521078]
[1741618761139,8.281,120.78,120.77,0.05521078]
[1741618761434,8.281,120.78,120.77,1.078e-05]
[1741618761634,121.16477693,120.79,120.69,4.306]
[1741618761936,63.74477693,120.83,120.67,4.296]
[1741618761937,63.74477693,120.83,120.72,63.74477693]
[1741618762130,3.9714,120.84,120.74,63.74477693]
[1741618762838,8.2807,120.79,120.78,0.05624689]
[1741618763035,0.05256414,120.8,120.78,0.05624689]
[1741618763936,8.2803,120.79,120.78,0.05624689]
[1741618764332,8.33226414,120.8,120.78,0.05624689]
[1741618764532,0.05256414,120.8,120.78,0.05624689]
[1741618764833,8.2803,120.79,120.78,0.05624689]
[1741618765537,63.74477693,120.79,120.69,4.0757]
[1741618766530,63.74477693,120.79,120.68,4.306]
[1741618766730,0.05806835,120.75,120.73,0.06011724]
[1741618766933,0.05806835,120.75,120.73,1.724e-05]
[1741618767130,8.2837,120.74,120.73,1.724e-05]
[1741618767536,74.50847693,120.74,120.73,1.724e-05]
[1741618767735,63.74477693,120.74,120.63,63.74477693]
[1741618767935,63.74477693,120.74,120.62,61.3851]
[1741618768138,63.74477693,120.72,120.62,61.3851]
[1741618768439,63.74477693,120.7,120.62,61.3851]
[1741618768636,63.74477693,120.7,120.62,3.9851]
[1741618768838,0.05364261,120.67,120.65,0.06023645]
[1741618769041,0.05364261,120.67,120.57,8.2952]
[1741618769042,121.19841954,120.67,120.57,8.2952]
[1741618769235,121.19841954,120.67,120.55,63.74477693]
[1741618769437,63.74477693,120.65,120.53,63.74477693]
[1741618769636,121.14477693,120.65,120.53,63.74477693]
[1741618769935,8.2933,120.6,120.53,63.74477693]
[1741618770129,8.35284302,120.6,120.58,0.05815086]
[1741618770338,0.05954302,120.6,120.58,0.05815086]
[1741618770640,0.05954302,120.6,120.56,8.2961]
[1741618770934,0.05954302,120.6,120.58,0.06159231]
[1741618771235,255.74477693,120.68,120.59,62.0]
[1741618772244,192.0,120.68,120.59,62.0]
[1741618772440,0.06272175,120.65,120.62,0.05803562]
[1741618772937,0.06272175,120.65,120.62,3.562e-05]
[1741618773141,121.14477693,120.64,120.62,3.562e-05]
[1741618773336,8.2913,120.63,120.62,3.562e-05]
[1741618773742,10.7713,120.63,120.62,3.562e-05]
[1741618773945,10.7713,120.63,120.52,4.1016]
[1741618773946,194.48,120.63,120.52,4.1016]
[1741618774238,63.74477693,120.61,120.5,63.74477693]
[1741618774443,63.74477693,120.61,120.47,57.42]
[1741618774444,4.1723,120.62,120.52,63.74477693]
[1741618774646,63.74477693,120.61,120.5,63.74477693]
[1741618774945,8.297,120.55,120.48,63.74477693]
[1741618775138,4.1723,120.62,120.5,63.74477693]
[1741618775340,0.0602153,120.57,120.54,0.06036089]
[1741618775539,8.2935,120.6,120.52,63.74477693]
[1741618775739,8.2935,120.6,120.53,66.1518]
[1741618775938,0.05590188,120.57,120.54,0.06229674]
[1741618776237,0.05590188,120.57,120.53,4.1518]
[1741618776639,0.05590188,120.57,120.54,0.053341]
[1741618776846,192.0,120.7,120.56,63.74477693]
[1741618777044,259.87797693,120.7,120.58,63.74477693]
[1741618777346,259.87797693,120.7,120.59,4.1518]
[1741618777641,8.2912,120.64,120.59,12.4455]
[1741618777843,259.87797693,120.7,120.59,12.4455]
[1741618777844,259.87797693,120.7,120.59,4.1518]
[1741618778039,0.05774398,120.63,120.6,63.80420646]
[1741618778241,4.1332,120.7,120.6,63.80420646]
[1741618778442,4.1332,120.7,120.6,63.74477693]
[1741618778946,63.74477693,120.69,120.59,4.1518]
[1741618779142,4.1332,120.7,120.6,63.74477693]
[1741618779346,0.06297285,120.65,120.63,0.06214158]
[1741618779748,4.1332,120.7,120.63,0.06214158]
[1741618779943,0.0601928,120.65,120.63,0.06214158]
[1741618780340,8.2894,120.66,120.63,0.06214158]
[1741618780341,4.1332,120.7,120.63,0.06214158]
[1741618780648,0.05701379,120.65,120.63,0.06214158]
[1741618780842,63.74477693,120.69,120.63,0.06214158]
[1741618781043,0.06293667,120.68,120.63,0.06214158]
[1741618781544,0.06293667,120.68,120.65,8.2895]
[1741618782150,8.2888,120.67,120.63,0.06214158]
[1741618782353,0.06293667,120.68,120.63,0.06214158]
[1741618783951,192.0,120.78,120.66,127.48955386]
[1741618784145,196.2159,120.78,120.69,63.74477693]
[1741618784342,204.4971,120.78,120.69,63.74477693]
[1741618784544,196.2159,120.78,120.69,63.74477693]
[1741618784941,8.2819,120.77,120.69,63.74477693]
[1741618785149,0.0533158,120.75,120.72,0.06096451]
[1741618786047,0.0533158,120.75,120.72,63.80574144]
[1741618786251,8.0723,120.82,120.74,63.74477693]
[1741618786552,8.0723,120.82,120.74,72.02787693]
[1741618786748,8.0723,120.82,120.74,63.74477693]
[1741618787055,8.0723,120.82,120.75,8.2829]
[1741618787056,8.2795,120.81,120.75,8.2829]
[1741618787450,0.05774566,120.79,120.77,0.06106289]
[1741618787852,58.78102362,120.89,120.78,121.08477693]
[1741618787853,192.0,120.89,120.78,121.08477693]
[1741618788054,12.3577,120.88,120.81,63.74477693]
[1741618788251,192.0,120.89,120.83,63.74477693]
[1741618788554,8.5128,120.9,120.83,63.74477693]
[1741618788748,196.0835,120.93,120.85,63.74477693]
[1741618788954,63.74477693,120.91,120.79,3.9604]
[1741618789155,0.06288782,120.9,120.85,63.74477693]
[1741618789356,1.6539861,120.92,120.85,63.74477693]
[1741618789651,4.0835,120.93,120.87,63.74477693]
[1741618789855,4.0835,120.93,120.85,63.74477693]
[1741618790357,0.06221662,120.9,120.83,63.74477693]
[1741618790658,196.0835,120.93,120.87,63.74477693]
[1741618790951,8.5518,120.97,120.89,63.74477693]
[1741618791157,8.5518,120.97,120.91,63.74477693]
[1741618791355,15.05162142,120.99,120.93,63.74477693]
[1741618791658,0.05698681,120.95,120.93,63.80765414]
[1741618791860,0.05698681,120.95,120.93,0.06287721]
[1741618792352,192.0,121.01,120.94,63.74477693]
[1741618792556,192.0,121.06,120.98,63.74477693]
[1741618792852,192.0,121.12,121.02,63.74477693]
[1741618793056,192.0,121.12,120.96,63.74477693]
[1741618793057,196.0104,121.12,121.04,63.74477693]
[1741618793257,196.0104,121.12,121.06,63.74477693]
[1741618793452,192.0,121.12,121.08,63.74477693]
[1741618793652,292.49762142,121.14,121.07,0.06114503]
[1741618793853,284.24122142,121.14,121.07,0.06114503]
[1741618794154,11.04122142,121.14,121.1,63.74477693]
[1741618794550,11.04122142,121.14,121.06,125.74477693]
[1741618794949,0.05596677,121.13,121.11,0.06177355]
[1741618795155,0.05596677,121.13,121.12,63.74477693]
[1741618795461,192.0,121.22,121.12,63.74477693]
[1741618795955,255.74477693,121.22,121.12,63.74477693]
[1741618796155,4.3459,121.23,121.14,63.74477693]
[1741618796659,4.3459,121.23,121.17,0.05583413]
[1741618796858,4.3459,121.23,121.17,8.31013413]
[1741618797055,196.3502,121.28,121.18,63.74477693]
[1741618797258,196.3502,121.28,121.2,63.74477693]
[1741618797562,4.3502,121.28,121.2,63.74477693]
[1741618797861,4.3502,121.28,121.23,0.0549988]
[1741618798952,44.07991001,121.31,121.23,0.0549988]
[1741618799157,44.07991001,121.31,121.26,63.74477693]
[1741618799355,44.07991001,121.31,121.23,57.1949988]
[1741618799356,44.07991001,121.31,121.24,63.74477693]
[1741618799557,44.07991001,121.31,121.27,0.05735975]
[1741618799754,192.0,121.35,121.27,0.05735975]
[1741618800058,192.0,121.34,121.27,0.05735975]
[1741618800362,57.14,121.36,121.21,61.3503]
[1741618800363,192.0,121.36,121.29,0.06027851]
[1741618800564,1.64812525,121.35,121.32,63.74477693]
[1741618800767,1.64812525,121.35,121.29,0.06027851]
[1741618800768,192.0,121.4,121.34,63.74477693]
[1741618801066,69.5171,121.43,121.32,63.8082705]
[1741618801370,255.74477693,121.42,121.3,63.74477693]
[1741618801664,192.0,121.42,121.36,0.05295819]
[1741618801866,192.0,121.45,121.36,63.79773512]
[1741618802061,268.52337693,121.49,121.37,62.0]
[1741618802261,204.7786,121.49,121.39,63.74477693]
[1741618802462,12.7786,121.49,121.41,63.74477693]
[1741618802768,12.7786,121.49,121.39,63.74477693]
[1741618802972,76.52337693,121.49,121.39,63.74477693]
[1741618803164,192.0,121.48,121.39,63.74477693]
[1741618803361,192.0,121.53,121.43,63.74477693]
[1741618803557,63.74477693,121.47,121.37,62.0]
[1741618803759,63.74477693,121.43,121.33,4.0549]
[1741618804265,63.74477693,121.43,121.33,67.79967693]
[1741618804468,63.74477693,121.41,121.31,57.1]
[1741618804661,63.74477693,121.35,121.28,4.2128]
[1741618804862,192.0,121.41,121.22,65.4546]
[1741618805064,0.06097411,121.33,121.3,0.06008513]
[1741618805264,63.74477693,121.39,121.3,0.06008513]
[1741618805464,63.74477693,121.34,121.22,264.11937693]
[1741618805658,63.74477693,121.3,121.23,1.48994354]
[1741618806062,63.74477693,121.28,121.2,8.2517]
[1741618806363,255.74477693,121.38,121.26,63.74477693]
[1741618806567,8.2395,121.39,121.28,71.99157693]
[1741618806869,63.74477693,121.34,121.24,67.73897693]
[1741618807065,77.01638871,121.38,121.32,0.05990146]
[1741618807267,8.2448,121.39,121.32,63.80467839]
[1741618807472,340.14667693,121.43,121.32,63.74477693]
[1741618807764,8.2448,121.46,121.36,63.74477693]
[1741618808070,1.43378036,121.52,121.42,63.74477693]
[1741618808266,144.98536564,121.55,121.43,8.2361]
[1741618808460,63.74477693,121.53,121.46,0.06287064]
[1741618808665,63.74477693,121.51,121.46,0.06287064]
[1741618808861,1.64554879,121.54,121.26,63.74477693]
[1741618808862,63.74477693,121.47,121.26,63.74477693]
[1741618809061,63.74477693,121.43,121.32,63.74477693]
[1741618809261,4.0962,121.5,121.39,63.74477693]
[1741618809462,67.84097693,121.5,121.39,63.74477693]
[1741618809664,63.74477693,121.48,121.37,63.74477693]
[1741618809863,336.00477693,121.48,121.37,63.74477693]
[1741618810179,0.05661275,121.44,121.41,0.063525]
[1741618810384,0.05661275,121.44,121.41,63.80830193]
[1741618810673,0.05661275,121.44,121.41,0.063525]
[1741618810861,77.01638871,121.51,121.43,63.74477693]
[1741618811064,67.78667693,121.52,121.41,63.80830193]
[1741618811262,273.76595506,121.51,121.43,63.74477693]
[1741618811463,1.64609053,121.5,121.39,63.74477693]
[1741618811666,63.74477693,121.46,121.35,68.06117693]
[1741618811968,63.74477693,121.42,121.31,8.2442]
[1741618812168,63.74477693,121.42,121.24,56.98]
[1741618812169,63.74477693,121.4,121.28,63.74477693]
[1741618812473,63.74477693,121.4,121.3,71.99017693]
[1741618812667,4.2152,121.41,121.32,63.74477693]
[1741618812872,56.98,121.4,121.3,63.74477693]
[1741618813074,56.98,121.4,121.32,63.74477693]
[1741618813269,8.4574,121.45,121.36,63.74477693]
[1741618813468,56.98,121.47,121.4,63.74477693]
[1741618813674,77.01638871,121.48,121.38,63.74477693]
[1741618813878,0.06077336,121.42,121.36,63.74477693]
[1741618814264,0.06077336,121.42,121.38,63.74477693]
[1741618814474,1.64731076,121.41,121.38,63.80243427]
[1741618814679,1.64731076,121.41,121.38,0.05765734]
[1741618814972,272.08,121.4,121.3,63.74477693]
[1741618815173,272.08,121.4,121.32,63.74477693]
[1741618815371,272.08,121.4,121.3,63.74477693]
[1741618815669,272.08,121.4,121.31,8.2447]
[1741618815868,272.08,121.4,121.3,63.74477693]
[1741618816071,0.05327536,121.37,121.34,0.0524292]
[1741618816280,120.75805229,121.37,121.27,8.1249]
[1741618816571,120.70477693,121.37,121.21,3.9736]
[1741618816764,392.78477693,121.4,121.28,63.74477693]
[1741618817074,63.74477693,121.38,121.26,63.74477693]
[1741618817373,63.74477693,121.36,121.26,63.74477693]
[1741618817571,63.74477693,121.36,121.31,0.06088824]
[1741618817572,0.05325726,121.33,121.31,0.06088824]
[1741618817769,272.09325726,121.33,121.31,0.06088824]
[1741618817973,274.57325726,121.33,121.22,63.74477693]
[1741618818172,67.74367693,121.32,121.23,1.49028274]
[1741618818372,67.74367693,121.32,121.23,8.2499]
[1741618818572,63.74477693,121.3,121.2,63.74477693]
[1741618818768,56.96,121.29,121.18,63.74477693]
[1741618818982,56.96,121.29,121.19,3.1406978]
[1741618819278,0.0587286,121.25,121.22,0.06348067]
[1741618819667,329.02,121.24,121.22,0.06348067]
[1741618819868,329.02,121.24,121.15,4.0603]
[1741618820078,329.02,121.24,121.16,1.49050562]
[1741618820272,63.74477693,121.23,121.12,63.74477693]
[1741618820467,63.74477693,121.23,121.1,12.4039]
[1741618820468,8.253,121.19,121.13,1.49062109]
[1741618820675,56.96,121.18,121.11,1.49062109]
[1741618820872,56.96,121.18,121.12,1.49062109]
[1741618821072,0.05360252,121.16,121.13,1.54461697]
[1741618821272,0.05360252,121.16,120.99,268.85687569]
[1741618821273,412.82116564,121.15,120.99,268.85687569]
[1741618821470,63.74477693,121.13,120.99,325.81687569]
[1741618821674,56.96,121.12,121.03,1.65248285]
[1741618822181,56.96,121.12,121.04,1.47947068]
[1741618822375,56.96,121.12,121.05,1.65220983]
[1741618822583,56.96,121.12,121.06,1.54024581]
[1741618822584,0.05486276,121.09,121.06,1.54024581]
[1741618823086,0.05486276,121.09,121.06,65.28502274]
[1741618823389,0.05486276,121.09,121.07,1.47947068]
[1741618823577,0.05486276,121.09,121.05,1.65220983]
[1741618823777,0.05486276,121.09,121.01,62.0]
[1741618823975,272.2,121.08,121.01,62.0]
[1741618824282,63.74477693,121.07,120.97,69.2608]
[1741618824484,63.74477693,121.07,120.96,63.74477693]
[1741618824685,272.2,121.08,120.98,63.74477693]
[1741618824881,0.05971776,121.03,120.99,1.46826249]
[1741618825079,0.05971776,121.03,121.0,0.05312637]
[1741618825481,8.32361776,121.03,121.0,0.05312637]
[1741618825682,63.74477693,121.02,120.83,192.0]
[1741618825884,63.74477693,120.99,120.88,63.74477693]
[1741618826078,272.32,120.99,120.9,63.74477693]
[1741618826485,272.32,120.99,120.91,8.272]
[1741618826778,272.32,120.99,120.92,1.45714157]
[1741618826979,0.06061405,120.96,120.94,0.06136085]
[1741618827183,0.06061405,120.96,120.94,1.51850242]
[1741618827990,0.06061405,120.96,120.94,0.06136085]
[1741618828286,57.0,120.95,120.92,1.45714157]
[1741618828487,57.0,120.95,120.86,1.45714157]
[1741618828785,63.74477693,120.93,120.87,1.45714157]
[1741618828986,63.74477693,120.93,120.88,1.45714157]
[1741618829195,8.2746,120.88,120.79,20.6707]
[1741618829394,55.52433124,120.88,120.79,12.3904]
[1741618829687,55.52433124,120.88,120.78,63.74477693]
[1741618829688,8.33837576,120.85,120.82,0.06203844]
[1741618829885,0.06207576,120.85,120.82,0.06203844]
[1741618831796,0.06207576,120.85,120.82,1.49663017]
[1741618833191,8.33837576,120.85,120.82,1.49663017]
[1741618833387,0.06207576,120.85,120.82,1.49663017]
[1741618833881,0.06207576,120.85,120.83,1.43469088]
[1741618834092,0.06207576,120.85,120.82,1.49672932]
[1741618834287,0.06207576,120.85,120.83,1.4347034]
[1741618834491,0.06207576,120.85,120.82,1.49674184]
[1741618834695,0.06207576,120.85,120.83,1.4347034]
[1741618834893,0.06207576,120.85,120.82,1.49674184]
[1741618835092,0.06207576,120.85,120.83,1.4347034]
[1741618835289,0.06207576,120.85,120.82,1.49674184]
[1741618835491,0.06207576,120.85,120.83,1.4347034]
[1741618835692,0.06207576,120.85,120.82,1.49674184]
[1741618835890,0.06207576,120.85,120.83,1.4347034]
[1741618836091,0.06207576,120.85,120.84,1.43464413]
[1741618836293,0.06207576,120.85,120.82,1.49668257]
[1741618836492,8.2775,120.83,120.82,1.49668257]
[1741618836687,63.74477693,120.84,120.81,1.43459086]
[1741618836892,63.74477693,120.82,120.72,120.84477693]
[1741618837288,63.74477693,120.8,120.72,57.1]
[1741618837496,63.74477693,120.8,120.68,120.84477693]
[1741618837897,63.74477693,120.8,120.7,63.74477693]
[1741618838097,0.05658361,120.75,120.73,0.05580223]
[1741618838299,0.05658361,120.75,120.74,9.69650215]
[1741618838597,8.135,120.82,120.74,1.41280215]
[1741618838898,71.87977693,120.82,120.75,1.41280215]
[1741618839096,63.74477693,120.8,120.71,1.41280215]
[1741618839401,71.87977693,120.82,120.72,1.41280215]
[1741618839694,0.05805605,120.77,120.74,0.05721882]
[1741618840093,0.05805605,120.77,120.72,63.74477693]
[1741618840288,0.00395543,120.77,120.74,0.05902625]
[1741618840487,63.74477693,120.8,120.74,1.4718284]
[1741618840794,63.74477693,120.8,120.75,1.41280215]
[1741618841101,63.74477693,120.78,120.69,1.41280215]
[1741618841403,63.74477693,120.78,120.67,4.1689]
[1741618841404,63.74477693,120.76,120.68,1.41280215]
[1741618841700,273.05627411,120.75,120.72,0.06006686]
[1741618842201,273.0,120.75,120.65,1.41251816]
[1741618842398,273.0,120.75,120.66,1.41251816]
[1741618842596,273.05326093,120.75,120.72,0.06217999]
[1741618843500,273.05326093,120.75,120.72,8.34717999]
[1741618843700,273.05326093,120.75,120.73,1.41250937]
[1741618843898,273.05326093,120.75,120.72,0.06217999]
[1741618844693,8.2844,120.73,120.72,7.999e-05]
[1741618844998,273.05326093,120.75,120.72,1.41258936]
[1741618845198,273.05326093,120.75,120.73,1.41250937]
[1741618845393,273.05326093,120.75,120.72,7.999e-05]
[1741618845600,8.2844,120.73,120.72,7.999e-05]
[1741618846103,8.33646093,120.75,120.72,7.999e-05]
[1741618846295,0.05326093,120.75,120.72,7.999e-05]
[1741618846599,8.2844,120.73,120.72,7.999e-05]
[1741618846898,0.05326093,120.75,120.72,7.999e-05]
[1741618847291,8.2837,120.74,120.72,7.999e-05]
[1741618847499,0.05326093,120.75,120.72,7.999e-05]
[1741618848200,8.2844,120.73,120.72,7.999e-05]
[1741618848397,0.05326093,120.75,120.72,7.999e-05]
[1741618849107,20.69,120.8,120.72,63.74485692]
[1741618849298,20.69,120.8,120.73,5.47501487]
[1741618849494,20.69,120.8,120.74,65.1463918]
[1741618849698,53.8,120.8,120.76,63.74477693]
[1741618849900,53.8,120.8,120.77,1.40161487]
[1741618850095,53.8,120.8,120.78,1.40161487]
[1741618850397,52.34324078,120.8,120.79,1.40161487]
[1741618850901,52.34324078,120.8,120.77,0.06220883]
[1741618850902,8.281,120.78,120.77,0.06220883]
[1741618851100,52.34324078,120.8,120.77,0.06220883]
[1741618851300,52.34324078,120.8,120.77,8.34340883]
[1741618851500,52.34324078,120.8,120.78,1.40143121]
[1741618851902,52.34324078,120.8,120.79,9.68173121]
[1741618852108,1.77,120.82,120.79,1.40143121]
[1741618852303,0.02,120.9,120.8,120.90477693]
[1741618852606,5.38026965,120.89,120.81,5.68853121]
[1741618852803,2.06933448,120.88,120.82,1.40143121]
[1741618852998,10.77964445,120.9,120.82,1.40143121]
[1741618853203,2.06886583,120.89,120.82,1.40143121]
[1741618853398,0.06271411,120.87,120.85,0.05643489]
[1741618853799,7.46870928,120.9,120.85,57.21643489]
[1741618854104,3.30956387,120.93,120.88,63.74477693]
[1741618854306,9.39570833,120.98,120.9,63.74477693]
[1741618854603,5.37650204,120.97,120.91,58.56143121]
[1741618854808,2.0678854,120.96,120.92,1.40143121]
[1741618854998,0.0610651,120.95,120.93,0.06080615]
[1741618855197,0.0610651,120.95,120.93,1.46223736]
[1741618855407,0.0610651,120.95,120.94,1.40143121]
[1741618855599,2.12812516,120.95,120.93,0.06080615]
[1741618855802,0.0610651,120.95,120.93,1.46223736]
[1741618855999,2.06720442,120.94,120.93,0.06080615]
[1741618856201,0.0610651,120.95,120.93,0.06080615]
[1741618856405,2.0670025,120.94,120.93,0.06080615]
[1741618856602,5.3744055,120.94,120.93,0.06080615]
[1741618857101,15.96662205,120.94,120.92,1.38917742]
[1741618857302,5.37533871,120.93,120.91,1.38917742]
[1741618857496,2.06743796,120.92,120.89,68.03187693]
[1741618857705,0.0610651,120.95,120.92,1.3891793]
[1741618857900,15.8699672,120.99,120.93,65.13395623]
[1741618858100,13.91523126,120.98,120.94,58.5291793]
[1741618858305,13.91523126,120.98,120.93,63.74477693]
[1741618858306,24.36508796,120.97,120.95,1.45111414]
[1741618858504,13.91549683,120.96,120.95,0.06193484]
[1741618858704,24.30685284,120.96,120.93,1.38912199]
[1741618858906,9.78197939,120.95,120.93,1.38912199]
[1741618859106,9.80029918,120.94,120.93,1.38912199]
[1741618859607,27.66459045,120.94,120.93,1.44484487]
[1741618859908,35.0579211,120.94,120.93,1.44484487]
[1741618860113,35.0579211,120.94,120.9,1.38918244]
[1741618860412,35.0579211,120.94,120.83,63.74477693]
[1741618860413,7.6949911,120.92,120.83,63.74477693]
[1741618860610,0.02,120.88,120.84,57.1]
[1741618860910,27.74166603,120.87,120.83,57.1]
[1741618861111,7.74378506,120.91,120.85,63.74477693]
[1741618861316,23.39028044,120.93,120.92,8.2714]
[1741618861503,7.74378506,120.99,120.92,58.46768132]
[1741618861704,7.74378506,120.97,120.93,1.36768132]
[1741618861906,0.06264019,120.94,120.87,58.46768132]
[1741618862102,3.30704048,120.93,120.88,1.36775534]
[1741618862410,7.74378506,120.91,120.85,1.36775534]
[1741618862710,74.79560247,120.9,120.86,1.36283581]
[1741618862908,11.05082554,120.89,120.86,1.36283581]
[1741618863117,16.03901698,120.92,120.84,63.74477693]
[1741618863413,9.7177286,120.9,120.89,8.2734]
[1741618863612,6.20178738,120.96,120.88,63.74477693]
[1741618863908,15.82617458,120.95,120.91,8.2715]
[1741618864108,6.20146453,120.94,120.9,63.74477693]
[1741618864416,15.82617458,120.95,120.9,120.82477693]
[1741618864617,6.20061736,120.94,120.9,120.82477693]
[1741618864912,6.20061736,120.94,120.9,65.3525]
[1741618864913,15.82617458,120.94,120.9,65.3525]
[1741618865116,0.06280487,120.93,120.91,0.05931602]
[1741618865308,15.88897945,120.93,120.91,0.05931602]
[1741618865610,6.20093018,120.92,120.86,57.08]
[1741618865816,6.20093018,120.91,120.86,57.08]
[1741618866011,6.20093018,120.9,120.86,57.08]
[1741618866209,15.82617458,120.91,120.88,63.74477693]
[1741618866404,4.13463307,120.91,120.88,63.74477693]
[1741618866609,24.7657,121.0,120.9,63.74477693]
[1741618867116,63.74477693,120.96,120.86,57.08]
[1741618867416,8.2713,120.93,120.87,8.2745]
[1741618867618,63.74477693,120.94,120.84,63.74477693]
[1741618867919,8.2747,120.88,120.83,57.08]
[1741618868108,0.06140356,120.87,120.84,0.05780237]
[1741618868320,0.06140356,120.87,120.84,63.8025793]
[1741618868515,19.1431764,120.92,120.88,8.2737]
[1741618868708,19.1431764,120.91,120.88,8.2737]
[1741618868907,4.2097,120.93,120.88,8.2737]
[1741618869107,4.2097,120.93,120.86,57.08]
[1741618869108,8.2728,120.9,120.86,57.08]
[1741618869315,23.29410316,120.89,120.86,57.08]
[1741618869515,23.29358771,120.88,120.84,0.05780237]
[1741618869718,4.13563107,120.87,120.85,57.08]
[1741618869915,20.96971313,120.96,120.86,63.74477693]
[1741618870113,21.25210911,120.95,120.9,63.74477693]
[1741618870314,6.327e-05,120.94,120.92,63.74477693]
[1741618870512,5.9997,121.01,120.92,63.74477693]
[1741618870715,8.89,120.96,120.95,8.2693]
[1741618870917,8.89,120.96,120.94,63.74477693]
[1741618871115,13.35078712,120.95,120.91,57.06]
[1741618871317,6.75488712,120.94,120.93,63.74477693]
[1741618871522,4.31287646,120.94,120.92,57.12149075]
[1741618871724,3.30648407,120.93,120.92,57.12149075]
[1741618872119,3.30648407,120.93,120.92,0.06149075]
[1741618872423,3.30648407,120.93,120.88,57.06]
[1741618872619,3.30648407,120.92,120.85,63.74477693]